Cogmind - Beta 17 @@@ ROGUE MODE // 2026.07.11 @ 12:53:45 Player: osman sinnoks Result: Destroyed by G-50 Soldier with Heavy Laser Performance ------------- Evolutions (4) 2000 Regions Visited (13) 2600 Robots Destroyed (138) 690 Value Destroyed (5412) 5412 Prototype IDs (4) 80 Alien Tech Used (0) 0 Bonus (3200) 3200 TOTAL SCORE: 13982 Bonus ------- High Alert Combat Kills 205 Follower Combat Kills 564 Entered Garrisons 800 Used RIF Installer 1500 Aligned with FarCom 300 Friendly Fire -169 Cogmind --------- Core Integrity 0/850 Matter 214/550 Energy 99/100 System Corruption 2% Temperature Cool (9) Movement Walking (90) Location -6/Garrison Parts ------- > --- POWER (1) -------- (None) > --- PROPULSION (3) --- Advanced VSS Leg Advanced VSS Leg Advanced VSS Leg > --- UTILITY (7) ------ Advanced Heat Sink Large Storage Unit Matter Compressor Advanced Targeting Computer Hardened Medium Armor Plating Graphene Brace Relay Coupler [Duelist] (16) > --- WEAPON (4) ------- Mini Assault Cannon Mass Driver > --- INVENTORY (15) --- Improved Deuterium Engine Reinforced Deuterium Engine Carbon-fiber Leg Flexi-carbon Leg Advanced VSS Leg Advanced VSS Leg Advanced Signal Interpreter Improved Light Armor Plating Focal Shield Hacking Suite Beamcaster Remote Datajack Peak State ------------ > --- POWER ------------ Angular Momentum Engine > --- PROPULSION ------- Advanced VSS Leg Advanced VSS Leg Advanced VSS Leg > --- UTILITY ---------- Large Storage Unit Matter Compressor Advanced Targeting Computer Advanced Targeting Computer Hardened Medium Armor Plating Hardened Medium Armor Plating Graphene Brace > --- WEAPON ----------- Beamcaster Gauss Rifle Mini Assault Cannon Mass Driver > --- INVENTORY -------- Improved Deuterium Engine Reinforced Deuterium Engine Carbon-fiber Leg Flexi-carbon Leg Advanced VSS Leg Advanced VSS Leg Advanced Heat Sink Advanced Signal Interpreter Hardened Medium Armor Plating Improved Light Armor Plating Focal Shield Hacking Suite Relay Coupler [Duelist] Remote Datajack [Rating: 77] Favorites ----------- Power Improved Ion Engine Engine Improved Ion Engine Power Core Nuclear Core Propulsion Armored Treads Treads Armored Treads Leg Flexi-carbon Leg Utility Advanced Targeting Computer Device Graphene Brace Storage Large Storage Unit Processor Advanced Targeting Computer Hackware Hacking Suite Protection Hardened Medium Armor Plating Weapon Coil Gun Energy Gun Particle Gun Energy Cannon Heavy Ion Cannon Ballistic Gun Coil Gun Ballistic Cannon Heavy Assault Cannon Launcher Rocket Launcher Special Weapon Remote Datajack Piercing Weapon Spear Build | -11 -10 -10 -10 -9 -8 -7 -7 -7 -7 -6 -6 -6 -6 ------- Run | Yrd Mat Min Exi Min Mat Fac Gar Fac Gar Fac Gar Fac Gar Slots Evolved 8 | . . . . . 4 2 . . . 2 . . . Power . | . . . . . . . . . . . . . . Propulsion 1 | . . . . . 1 . . . . . . . . Utility 5 | . . . . . 3 1 . . . 1 . . . Weapon 2 | . . . . . . 1 . . . 1 . . . Parts Attached 101 | 7 7 1 3 . 12 4 5 7 17 17 4 2 15 Power 9 | 1 2 . . . . . 1 1 2 1 1 . . Engine 8 | 1 2 . . . . . 1 . 2 1 1 . . Core 1 | . . . . . . . . 1 . . . . . Reactor . | . . . . . . . . . . . . . . Propulsion 26 | 2 1 . . . 5 . . 1 5 4 1 . 7 Treads 13 | 2 1 . . . 5 . . 1 3 1 . . . Leg 13 | . . . . . . . . . 2 3 1 . 7 Wheel . | . . . . . . . . . . . . . . Hover . | . . . . . . . . . . . . . . Flight . | . . . . . . . . . . . . . . Utility 32 | 2 1 . 3 . 3 2 2 3 4 6 1 1 4 Device 8 | 1 . . 2 . 1 1 . . . 1 1 . 1 Storage 4 | 1 1 . . . . . 1 . . 1 . . . Processor 4 | . . . . . 2 . . 1 1 . . . . Hackware 4 | . . . 1 . . . . 1 1 . . . 1 Protection 12 | . . . . . . 1 1 1 2 4 . 1 2 Artifact . | . . . . . . . . . . . . . . Weapon 34 | 2 3 1 . . 4 2 2 2 6 6 1 1 4 Energy Gun 2 | . . . . . . . . . 1 . . . 1 Energy Cannon 2 | . . . . . 2 . . . . . . . . Ballistic Gun 18 | 2 1 . . . 2 1 1 . 4 6 . . 1 Ballistic Cannon 5 | . . . . . . 1 1 . . . 1 1 1 Launcher 4 | . 2 1 . . . . . . 1 . . . . Special Weapon 2 | . . . . . . . . 1 . . . . 1 Impact Weapon . | . . . . . . . . . . . . . . Slashing Weapon . | . . . . . . . . . . . . . . Piercing Weapon 1 | . . . . . . . . 1 . . . . . Special Melee Weapon . | . . . . . . . . . . . . . . Unidentified Prototypes 4 | . . . 2 . 1 . . . . . . 1 . Parts Lost 40 | . . . . . 1 . 3 1 11 11 2 . 11 Power 4 | . . . . . . . 1 . . 1 1 . 1 Propulsion 8 | . . . . . . . . . 4 3 . . 1 Utility 11 | . . . . . 1 . 1 . 3 2 1 . 3 Weapon 17 | . . . . . . . 1 1 4 5 . . 6 Highest Loss Streak 9 | . . . . . 1 . 1 1 7 9 2 . 4 To Critical Strikes . | . . . . . . . . . . . . . . Average Backups 13 | 1 9 15 14 15 13 13 13 13 12 13 13 14 14 Power 1 | . 1 2 2 2 2 2 1 2 2 1 1 1 1 Propulsion 1 | . 1 3 3 3 1 3 3 2 . . 4 4 3 Utility 3 | . 2 4 3 4 2 3 1 3 4 4 4 6 7 Weapon 4 | . 3 6 6 6 6 5 6 5 5 5 1 2 . Tool/Special . | . . . . . . . . . . . . . . Unused Backups 41 | . 8 1 1 . 6 4 . 5 3 2 . . 11 Power 5 | . 1 . . . . . . 2 1 . . . 1 Propulsion 14 | . 4 . . . . 4 . . 1 . . . 5 Utility 9 | . 2 . 1 . . . . . . 1 . . 5 Weapon 13 | . 1 1 . . 6 . . 3 1 1 . . . Tool/Special . | . . . . . . . . . . . . . . Average Slot Usage (%) 94 | . 99 100 100 100 94 91 91 91 95 93 96 100 95 Engine 6 | . 14 14 14 14 9 7 6 4 3 5 5 6 5 Treads 18 | . 28 28 28 28 26 23 23 23 15 13 . . . Leg 3 | . . . . . . . . . 4 3 20 20 19 Device 10 | . 14 14 7 . 14 15 9 7 7 11 10 13 11 Storage 13 | . 14 14 14 14 9 7 12 15 15 12 13 13 13 Processor 8 | . . . . . 9 7 7 7 14 13 13 13 12 Hackware 2 | . . . 7 14 9 7 2 3 . . . . . Protection 5 | . . . . . . 6 12 9 7 5 6 6 6 Ballistic Gun 11 | . 14 14 14 14 . 1 4 5 16 19 20 14 7 Ballistic Cannon 3 | . . . . . . 6 7 6 1 . 3 11 12 Launcher 3 | . 13 14 14 14 9 5 1 . . . . . 1 Piercing Weapon 1 | . . . . . . . . 1 3 4 2 . . Peak Build Rating 77 | 7 11 12 24 14 41 47 44 46 50 67 70 72 77 Average Rating 42 | 4 8 11 13 14 35 44 41 42 45 56 68 71 70 On Entrance 34 | . 7 11 12 14 14 41 43 42 46 48 67 70 72 Avg Prop Armor Cover (%) 3 | . . . . . . . . . 4 3 . . . Naked Turns . | . . . . . . . . . . . . . . Heaviest Build 76 | 12 34 35 35 34 48 60 64 64 61 71 72 72 76 Greatest Support 64 | 40 40 40 40 40 60 60 60 62 64 62 60 58 58 Greatest Overweight (x) 13 | . . . . . 1 . 1 1 2 13 1 1 1 Average Overweight (x) . | . . . . . . . . . . 1 . 1 1 Largest Inventory Capacity 15 | 8 15 15 15 15 15 15 15 15 15 15 15 15 15 Average Capacity 14 | 7 14 15 15 15 15 15 15 15 15 15 15 15 15 Most Carried 15 | 4 15 15 15 15 15 15 15 15 15 15 14 15 15 Average Carried 13 | 1 9 15 14 15 14 14 14 14 13 13 13 14 14 Final Capacity 15 | 8 15 15 15 15 15 15 15 15 15 15 15 15 15 Final Carried 15 | 2 15 15 15 15 15 15 15 15 14 13 13 15 12 Class Distribution -------------------- 31% | Scavenger-Gunner 31% | Mutant 17% | Scavenger-Bomber 6% | Scavenger-Mutant 5% | Scavenger-Tank 5% | Tank Dominant Class ---------------- Mutant | -10/Materials Mutant | -10/Mines Mutant | -10/Exiles Mutant | -9/Mines Scavenger-Mutant | -8/Materials Scavenger-Bomber | -7/Factory Scavenger-Bomber | -7/Garrison Scavenger-Tank | -7/Factory Mutant | -7/Garrison Scavenger-Gunner | -6/Factory Scavenger-Gunner | -6/Garrison Scavenger-Gunner | -6/Factory Scavenger-Gunner | -6/Garrison Resources | -11 -10 -10 -10 -9 -8 -7 -7 -7 -7 -6 -6 -6 -6 ----------- Run | Yrd Mat Min Exi Min Mat Fac Gar Fac Gar Fac Gar Fac Gar Matter Collected 4759 | 233 281 . 71 96 265 199 238 604 801 963 308 . 700 Remotely . | . . . . . . . . . . . . . . Salvage Created 4436 | 25 242 . . 13 663 113 226 358 741 1373 201 . 481 Parts 282 | 4 29 . . 6 54 5 18 25 47 70 6 . 18 Haulers Intercepted 5 | . 2 . . . 2 . . . . 1 . . . Recyclers Shooed 1 | . . . . . . . . . . 1 . . . Parts Field Recycled . | . . . . . . . . . . . . . . Retrieved Matter . | . . . . . . . . . . . . . . Parts Self-Destructed . | . . . . . . . . . . . . . . Prevented . | . . . . . . . . . . . . . . Parts Restored . | . . . . . . . . . . . . . . Kills | -11 -10 -10 -10 -9 -8 -7 -7 -7 -7 -6 -6 -6 -6 ------- Run | Yrd Mat Min Exi Min Mat Fac Gar Fac Gar Fac Gar Fac Gar Combat Hostiles Destroyed 102 | . 8 . . 4 14 3 13 7 19 14 6 . 14 Melee 5 | . . . . . . . . 1 1 3 . . . Guns 40 | . 1 . . . . . 3 3 16 11 4 . 2 Cannons 32 | . . . . . 7 3 5 3 2 . . . 12 AOE 24 | . 7 . . 4 6 . 5 . . . 2 . . Classes Destroyed 17 | 1 7 . . . 4 1 . 1 2 1 . . . Worker 5 | . 1 . . . 2 . . 1 . 1 . . . Builder 7 | . 3 . . . 1 . . 2 . 1 . . . Tunneler 1 | 1 . . . . . . . . . . . . . Hauler 5 | . 2 . . . 2 . . . . 1 . . . Recycler 4 | . . . . . . . . 1 . 3 . . . Operator 3 | . 2 . . . . . . . . 1 . . . Watcher 10 | . 3 . . . 1 . . 3 . 3 . . . Swarmer 33 | . 6 . . 4 4 . 10 2 4 . 3 . . Cutter 3 | . . . . . . . . . 3 . . . . Grunt 27 | . 2 . . . 5 . 2 1 5 3 3 . 6 Brawler 1 | . . . . . 1 . . . . . . . . Duelist 2 | . . . . . . . . . 2 . . . . Sentry 12 | . . . . . 2 1 . 1 2 3 . . 3 Specialist 2 | . . . . . . . . . . 2 . . . Hunter 7 | . . . . . 1 1 1 1 . 1 . . 2 Programmer 14 | . . . . . . 1 . 2 3 5 . . 3 Heavy 1 | . . . . . 1 . . . . . . . . Thug 1 | . . . . . 1 . . . . . . . . Best Kill Streak 15 | 1 5 . . 4 15 2 4 2 8 4 4 . 5 Combat Bots Only 8 | . 3 . . 4 5 2 4 2 8 2 4 . 5 Max Kills in Single Turn 3 | 1 3 . . 3 3 1 2 2 2 2 3 . 1 Gunslinging 1 | . . . . . . . . . 1 . . . . Exploded 3 | . 2 . . 3 2 . 2 . . . 2 . . Melee 1 | . . . . . . . . 1 1 1 . . . Uniques/NPCs Destroyed . | . . . . . . . . . . . . . . Combat | -11 -10 -10 -10 -9 -8 -7 -7 -7 -7 -6 -6 -6 -6 -------- Run | Yrd Mat Min Exi Min Mat Fac Gar Fac Gar Fac Gar Fac Gar Hostile Shots Fired 1064 | . 11 . . 6 33 53 67 107 210 266 43 . 268 Missed 345 | . 1 . . 3 12 16 20 36 68 87 18 . 84 Hits 719 | . 10 . . 3 21 37 47 71 142 179 25 . 184 Melee 3 | . . . . . . . . . 3 . . . . Projectile 716 | . 10 . . 3 21 37 47 71 139 179 25 . 184 AOE 6 | . . . . . . . . . 1 4 . . 1 Critical Strikes 21 | . . . . . 2 2 1 2 5 6 . . 3 Actively Blocked 19 | . . . . . . 2 1 2 5 6 . . 3 Damage Taken 10054 | . 239 46 . 24 409 382 713 792 2070 2400 624 . 2355 Core 1311 | . 27 . . . 38 6 59 146 173 549 16 . 297 Absorbed by Shields . | . . . . . . . . . . . . . . Core Remaining (%) 81 | 100 . . . 89 93 . . . 45 . . . . Volleys Fired 309 | 2 22 1 . 2 24 20 26 41 52 48 14 . 57 Largest 4 | 2 2 2 . 2 2 2 2 3 3 4 4 . 4 Hottest 143 | 40 50 56 . 56 98 78 87 93 93 121 130 . 143 Shots Fired 653 | 4 34 2 . 4 34 34 46 55 124 122 44 . 150 Gun 385 | 4 22 1 . 2 . 14 10 17 97 122 42 . 54 Cannon 229 | . . . . . 24 20 32 35 23 . 1 . 94 Launcher 31 | . 12 1 . 2 10 . 4 . 1 . 1 . . Special 8 | . . . . . . . . 3 3 . . . 2 Kinetic 590 | 4 22 1 . 2 . 34 42 52 120 122 43 . 148 Thermal 24 | . . . . . 24 . . . . . . . . Explosive 31 | . 12 1 . 2 10 . 4 . 1 . 1 . . Electromagnetic . | . . . . . . . . . . . . . . Robot Hit Streak 15 | 3 5 1 . 1 11 10 6 10 11 13 15 . 11 Robot Miss Streak 9 | . 5 1 . 2 1 2 6 9 7 6 3 . 6 Penetration Max 1 | . . . . . . . . 1 1 1 1 . 1 Secondary Targets 7 | . . . . . . . . . 4 1 2 . . Max Gunslinging Chain 1 | . . . . . . . . . 1 1 1 . . Shots Hit Robots 427 | 3 14 1 . 1 21 16 20 46 78 97 28 . 102 Core Hits 282 | 1 26 . . 5 27 5 21 14 50 50 21 . 62 Critical Kills 5 | . . . . . 1 . . . 3 . 1 . . Critical Parts Destroyed 4 | . . . . . . . . 1 . 2 1 . . Critical Strikes 21 | . . . . . 1 1 2 5 3 2 2 . 5 Meltdown 1 | . . . . . 1 . . . . . . . . Destroy 8 | . . . . . . . . 1 3 2 2 . . Blast 10 | . . . . . . 1 2 2 . . . . 5 Impale 2 | . . . . . . . . 2 . . . . . Melee Attacks 65 | . . . . . . . . 11 5 43 2 . 4 Impact . | . . . . . . . . . . . . . . Slashing . | . . . . . . . . . . . . . . Piercing 65 | . . . . . . . . 11 5 43 2 . 4 Sneak Attacks 5 | . . . . . . . . 2 . 3 . . . Combat Hostiles . | . . . . . . . . . . . . . . Follow-up Attacks . | . . . . . . . . . . . . . . Damage Inflicted 14366 | 37 842 60 . 224 1228 776 1066 1967 1852 2782 705 . 2827 Guns 5654 | 37 137 18 . . . 195 57 288 1440 1973 584 . 925 Cannons 5339 | . . . . . 486 580 670 1361 340 . . . 1902 Explosions 2337 | . 695 41 . 224 740 . 339 . 45 132 121 . . Melee 995 | . . . . . . . . 291 27 677 . . . Ramming 41 | . 10 1 . . 2 1 . 27 . . . . . Kinetic 10507 | 37 137 18 . . . 775 727 1649 1780 1973 584 . 2827 Thermal 486 | . . . . . 486 . . . . . . . . Explosive 2337 | . 695 41 . 224 740 . 339 . 45 132 121 . . Electromagnetic . | . . . . . . . . . . . . . . Impact . | . . . . . . . . . . . . . . Slashing . | . . . . . . . . . . . . . . Piercing 995 | . . . . . . . . 291 27 677 . . . Highest Corruption 2 | . . . . . . . . 1 1 2 2 2 2 Average Corruption 1 | . . . . . . . . 1 1 1 2 2 2 Corruption Purged . | . . . . . . . . . . . . . . Corruption Blocked . | . . . . . . . . . . . . . . Effects 47 | . . . . . . . . 6 12 14 5 . 10 Message Errors 12 | . . . . . . . . 2 5 1 1 . 3 Matter Fused 11 | . . . . . . . . . 2 5 2 . 2 Heat Flow Errors 4 | . . . . . . . . . . 2 2 . . Energy Discharges 7 | . . . . . . . . 1 1 4 . . 1 Parts Rejected 1 | . . . . . . . . . . 1 . . . Data Loss (minor) 5 | . . . . . . . . 1 2 1 . . 1 Data Loss (major) 3 | . . . . . . . . 1 1 . . . 1 Weapon Failures 4 | . . . . . . . . 1 1 . . . 2 Overload Shots . | . . . . . . . . . . . . . . Overflow Damage 390 | . . 1 . . 12 9 64 208 . 56 . . 40 Projectiles 283 | . . . . . . 9 59 175 . . . . 40 Explosions 35 | . . 1 . . 12 . 5 . . 17 . . . Melee 72 | . . . . . . . . 33 . 39 . . . Knockbacks 37 | . . . . . . 2 8 8 5 . . . 14 Impact . | . . . . . . . . . . . . . . Kinetic 35 | . . . . . . 2 8 8 4 . . . 13 Secondary 2 | . . . . . . . . . 1 . . . 1 Self-Inflicted Damage 280 | . 156 47 . . 25 . 25 . . . 27 . . Shots 9 | . 5 1 . . 1 . 1 . . . 1 . . Rammed 5 | . 2 1 . . . 1 . 1 . . . . . Targets Rammed 6 | . 2 1 . . 1 1 . 1 . . . . . Kicked . | . . . . . . . . . . . . . . Crushed 1 | . . . . . 1 . . . . . . . . Highest Temperature 494 | . 2 18 . 18 365 117 108 64 222 203 315 . 494 Average Temperature 81 | . 2 13 . 13 92 42 41 14 74 45 97 . 170 Received Heat Transfer 2061 | . 12 . . . 54 60 99 111 543 336 126 . 720 Effects 7 | . . . . . 1 . . . . . . . 6 Shutdowns 2 | . . . . . . . . . . . . . 2 Interference 4 | . . . . . 1 . . . . . . . 3 Damage (major) 1 | . . . . . . . . . . . . . 1 Siege Activations . | . . . . . . . . . . . . . . Martial Activations . | . . . . . . . . . . . . . . Shielding Activations . | . . . . . . . . . . . . . . Robots Disrupted . | . . . . . . . . . . . . . . Combat Hostiles . | . . . . . . . . . . . . . . Robots Corrupted . | . . . . . . . . . . . . . . Combat Hostiles . | . . . . . . . . . . . . . . Parts Fried . | . . . . . . . . . . . . . . Impact Corruptions . | . . . . . . . . . . . . . . Robots Melted 1 | . . . . . 1 . . . . . . . . Combat Hostiles 1 | . . . . . 1 . . . . . . . . Parts Melted 3 | . . . . . 3 . . . . . . . . Heat Transferred 666 | . . . . . 666 . . . . . . . . Parts Sabotaged . | . . . . . . . . . . . . . . Parts Stolen . | . . . . . . . . . . . . . . Parts Stripped . | . . . . . . . . . . . . . . Power Chain Reactions . | . . . . . . . . . . . . . . Alert | -11 -10 -10 -10 -9 -8 -7 -7 -7 -7 -6 -6 -6 -6 ------- Run | Yrd Mat Min Exi Min Mat Fac Gar Fac Gar Fac Gar Fac Gar Maximum Alert Level 2 | . 1 . . . 2 . 2 1 2 1 2 1 2 Low Security (%) 65 | 100 92 100 . 100 36 100 44 91 40 73 . . 9 Level 1 19 | . 7 . . . 15 . 18 8 31 26 39 100 41 Level 2 14 | . . . . . 48 . 37 . 28 . 60 . 49 Level 3 . | . . . . . . . . . . . . . . Level 4 . | . . . . . . . . . . . . . . Level 5 . | . . . . . . . . . . . . . . High Security . | . . . . . . . . . . . . . . Max Security . | . . . . . . . . . . . . . . Peak Influence 579 | 5 231 34 . 100 492 183 496 260 578 328 461 241 579 Initial 303 | . . 34 . . 31 183 27 260 19 303 228 241 140 Average 173 | . 101 5 . 25 272 74 275 78 297 122 378 222 383 Influence Increases 4321 | 5 371 10 . 100 580 130 499 334 688 702 273 . 629 Destroy 0b10 Robot/C 2360 | . 160 . . 80 280 60 260 160 460 280 200 . 420 Destroy 0b10 Robot/NC 175 | 5 55 . . . 30 . . 35 . 50 . . . Destroy Leader 450 | . 40 . . 10 76 30 20 66 40 118 10 . 40 Allied During Kill 101 | . . . . . 6 . . 15 18 6 29 . 27 Successful Hack 18 | . 6 . . . . 12 . . . . . . . Disable Machine 345 | . 30 . . . 75 . . 30 . 195 15 . . Anti-Garrison Action 250 | . . . . . . . 50 . 150 . . . 50 Destroy Structure 382 | . 80 10 . 10 83 13 64 13 20 38 19 . 32 Partial Spotted 15 | . . . . . . 15 . . . . . . . Lose Combat Pursuer 225 | . . . . . 30 . 105 15 . 15 . . 60 Influence Decreases 3742 | 5 281 100 . 20 256 495 42 802 138 954 138 260 251 Entered New Map 1237 | . . 56 . . 49 221 12 236 9 275 98 220 61 Time Decay 2030 | 5 281 44 . 20 206 274 . 556 . 604 . 40 . Lost Part 336 | . . . . . 1 . 30 10 110 55 20 . 110 Lost Ally 139 | . . . . . . . . . 19 20 20 . 80 Squads Dispatched 15 | . 1 . . . 1 2 . 4 . 7 . . . Investigation . | . . . . . . . . . . . . . . Extermination 8 | . . . . . . 1 . 3 . 4 . . . Reinforcement 6 | . 1 . . . 1 1 . 1 . 2 . . . Assault . | . . . . . . . . . . . . . . Garrison 1 | . . . . . . . . . . 1 . . . Intercept . | . . . . . . . . . . . . . . Searches Triggered . | . . . . . . . . . . . . . . Construction Impeded 1 | . . . . . . . . 1 . . . . . Haulers Reinforced 1 | . . . . . . 1 . . . . . . . Active Scanning Responses . | . . . . . . . . . . . . . . Cargo Convoy Interrupts . | . . . . . . . . . . . . . . Stealth | -11 -10 -10 -10 -9 -8 -7 -7 -7 -7 -6 -6 -6 -6 --------- Run | Yrd Mat Min Exi Min Mat Fac Gar Fac Gar Fac Gar Fac Gar Distress Signals 6 | . . . . 1 2 . . 2 . 1 . . . Communications Jammed . | . . . . . . . . . . . . . . Distress Signals . | . . . . . . . . . . . . . . Times Spotted 157 | . 13 . . 2 19 5 17 15 26 20 10 . 30 Peak Tracking Total 8 | . 5 . . 4 6 2 5 2 5 2 8 . 8 Tactical Retreats 13 | . . . . . 1 . 6 1 . 1 . . 4 Traps | -11 -10 -10 -10 -9 -8 -7 -7 -7 -7 -6 -6 -6 -6 ------- Run | Yrd Mat Min Exi Min Mat Fac Gar Fac Gar Fac Gar Fac Gar Traps Triggered 11 | . . . . . . 1 3 . 3 1 1 . 2 Indirectly . | . . . . . . . . . . . . . . Trap Hack Attempts . | . . . . . . . . . . . . . . Triggered . | . . . . . . . . . . . . . . Disarmed . | . . . . . . . . . . . . . . Reprogrammed . | . . . . . . . . . . . . . . Reused . | . . . . . . . . . . . . . . Traps Extracted . | . . . . . . . . . . . . . . Installed . | . . . . . . . . . . . . . . Triggered . | . . . . . . . . . . . . . . Machines | -11 -10 -10 -10 -9 -8 -7 -7 -7 -7 -6 -6 -6 -6 ---------- Run | Yrd Mat Min Exi Min Mat Fac Gar Fac Gar Fac Gar Fac Gar Machines Disabled 26 | . 2 . . . 5 . 1 2 1 13 1 . 1 Max in Single Turn 4 | . 2 . . . 2 . 1 1 1 4 1 . 1 Garrison Access 1 | . . . . . . . . . . 1 . . . Garrison Relay 3 | . . . . . . . 1 . 1 . . . 1 Phase Generator 1 | . . . . . . . . . 1 . . . . Machines Repaired . | . . . . . . . . . . . . . . Machines Dismantled . | . . . . . . . . . . . . . . Machines Sabotaged . | . . . . . . . . . . . . . . Overloaded Fab Kills . | . . . . . . . . . . . . . . Hacking | -11 -10 -10 -10 -9 -8 -7 -7 -7 -7 -6 -6 -6 -6 --------- Run | Yrd Mat Min Exi Min Mat Fac Gar Fac Gar Fac Gar Fac Gar Machines Accessed 11 | . 5 . . . . 1 . 1 . 3 . 1 . Terminals 5 | . 4 . . . . . . . . 1 . . . Fabricators . | . . . . . . . . . . . . . . Repair Stations . | . . . . . . . . . . . . . . Recycling Units 1 | . 1 . . . . . . . . . . . . Scanalyzers . | . . . . . . . . . . . . . . Garrison Access 5 | . . . . . . 1 . 1 . 2 . 1 . Total Hacks 21 | . 11 . . . . 1 . 2 . 5 . 2 . Successful 17 | . 9 . . . . 1 . 2 . 3 . 2 . Failed 4 | . 2 . . . . . . . . 2 . . . Catastrophic 2 | . . . . . . . . . . 2 . . . Database Lockouts . | . . . . . . . . . . . . . . Manual 11 | . 8 . 1 . . . . . . 2 . . . Terminals 12 | . 10 . . . . . . . . 2 . . . Fabricators . | . . . . . . . . . . . . . . Repair Stations . | . . . . . . . . . . . . . . Recycling Units 1 | . 1 . . . . . . . . . . . . Scanalyzers . | . . . . . . . . . . . . . . Garrison Access 8 | . . . . . . 1 . 2 . 3 . 2 . Terminal Hacks 3 | . 3 . . . . . . . . . . . . Record 2 | . 2 . . . . . . . . . . . . Zone Layout 1 | . 1 . . . . . . . . . . . . Fabricator Hacks . | . . . . . . . . . . . . . . Repair Station Hacks . | . . . . . . . . . . . . . . Recycling Unit Hacks 1 | . 1 . . . . . . . . . . . . Report Inventory 1 | . 1 . . . . . . . . . . . . Scanalyzer . | . . . . . . . . . . . . . . Garrison Access Hacks 8 | . . . . . . 1 . 2 . 3 . 2 . Unlock Access 4 | . . . . . . 1 . 1 . 1 . 1 . Seal Access 1 | . . . . . . . . . . 1 . . . Coupler Status 3 | . . . . . . . . 1 . 1 . 1 . Unauthorized Hacks 5 | . 5 . . . . . . . . . . . . Terminals 5 | . 5 . . . . . . . . . . . . Assimilate 1 | . 1 . . . . . . . . . . . . Botnet 4 | . 4 . . . . . . . . . . . . Fabricators . | . . . . . . . . . . . . . . Repair Stations . | . . . . . . . . . . . . . . Recycling Units . | . . . . . . . . . . . . . . Scanalyzers . | . . . . . . . . . . . . . . Garrison Access . | . . . . . . . . . . . . . . Data Cores Recovered 1 | . 1 . . . . . . . . . . . . Used . | . . . . . . . . . . . . . . Hacking Detections 7 | . 4 . . . . . . 1 . 2 . . . Full Trace Events . | . . . . . . . . . . . . . . Feedback Events . | . . . . . . . . . . . . . . Feedback Blocked . | . . . . . . . . . . . . . . Robot Schematics Acquired . | . . . . . . . . . . . . . . Robots Built . | . . . . . . . . . . . . . . Authchips . | . . . . . . . . . . . . . . Time . | . . . . . . . . . . . . . . Total Robot Build Rating . | . . . . . . . . . . . . . . Part Schematics Acquired . | . . . . . . . . . . . . . . Parts Built . | . . . . . . . . . . . . . . Authchips . | . . . . . . . . . . . . . . Time . | . . . . . . . . . . . . . . Total Part Build Rating . | . . . . . . . . . . . . . . Part Studies Acquired . | . . . . . . . . . . . . . . Parts Repaired . | . . . . . . . . . . . . . . Time . | . . . . . . . . . . . . . . Parts Recycled . | . . . . . . . . . . . . . . Recycled Matter . | . . . . . . . . . . . . . . Retrieved Matter . | . . . . . . . . . . . . . . Retrieved Components . | . . . . . . . . . . . . . . Parts Scanalyzed . | . . . . . . . . . . . . . . Part Schematics Acquired . | . . . . . . . . . . . . . . Parts Damaged . | . . . . . . . . . . . . . . Bothacking | -11 -10 -10 -10 -9 -8 -7 -7 -7 -7 -6 -6 -6 -6 ------------ Run | Yrd Mat Min Exi Min Mat Fac Gar Fac Gar Fac Gar Fac Gar Used RIF Installer 3 | . . . . . . . 1 . 1 . . . 1 Hotswap 1 | . . . . . . . . . . . . . 1 Alert ID Control 1 | . . . . . . . . . 1 . . . . Robots Hacked 7 | . . . . . . . . 3 3 . . . 1 Non-combat . | . . . . . . . . . . . . . . Combat 7 | . . . . . . . . 3 3 . . . 1 Robot Hacks Applied 7 | . . . . . . . . 3 3 . . . 1 parse_system 1 | . . . . . . . . 1 . . . . . spike_heat 1 | . . . . . . . . . 1 . . . . formatsys_high 5 | . . . . . . . . 2 2 . . . 1 Relay Couplers Released 10 | . . . . . . . 4 . 3 . . . 3 Machine Destruction 10 | . . . . . . . 4 . 3 . . . 3 Attached 3 | . . . . . . . . 1 1 . . . 1 Fabnet Peak Effective % . | . . . . . . . . . . . . . . Robots Rewired . | . . . . . . . . . . . . . . Allies Hacked . | . . . . . . . . . . . . . . Hacks Repelled . | . . . . . . . . . . . . . . Allies | -11 -10 -10 -10 -9 -8 -7 -7 -7 -7 -6 -6 -6 -6 -------- Run | Yrd Mat Min Exi Min Mat Fac Gar Fac Gar Fac Gar Fac Gar Total Allies 10 | . . . . 1 . . . 2 2 . 2 . 3 Largest Group 2 | . . . . 1 1 . . 2 2 1 2 1 2 Highest-Rated Group 190 | . . . . 31 31 . . 45 45 16 160 80 190 Highest-Rated Ally 95 | . . . . 31 31 . . 29 29 16 80 80 95 Total Orders . | . . . . . . . . . . . . . . Ally Attacks 101 | . . . . . 10 . . 9 15 18 23 . 26 Total Damage 2370 | . . . . . 108 . . 139 190 152 527 . 1254 Kills 16 | . . . . . . . . 1 4 . 4 . 7 Allies Corrupted . | . . . . . . . . . . . . . . Allies Melted . | . . . . . . . . . . . . . . Intel | -11 -10 -10 -10 -9 -8 -7 -7 -7 -7 -6 -6 -6 -6 ------- Run | Yrd Mat Min Exi Min Mat Fac Gar Fac Gar Fac Gar Fac Gar Active Infowar (turns) 1531 | 26 1048 275 180 . 2 . . . . . . . . Seismic 1527 | 26 1048 275 178 . . . . . . . . . . Cloaking 4 | . . . 2 . 2 . . . . . . . . Robot Analysis Total . | . . . . . . . . . . . . . . Derelict Logs Recovered . | . . . . . . . . . . . . . . Drone Launches . | . . . . . . . . . . . . . . Drone Recoveries . | . . . . . . . . . . . . . . Exploration | -11 -10 -10 -10 -9 -8 -7 -7 -7 -7 -6 -6 -6 -6 ------------- Run | Yrd Mat Min Exi Min Mat Fac Gar Fac Gar Fac Gar Fac Gar Turns Passed 10150 | 81 1048 275 368 170 439 680 822 1637 1299 2251 389 91 600 Spaces Moved 4384 | 49 594 163 226 68 199 323 320 812 497 717 173 45 198 Core 46 | 16 . . . . . . . . . 30 . . . Treads 3867 | 33 594 163 226 68 199 323 320 812 497 632 . . . Legs 471 | . . . . . . . . . . 55 173 45 198 Wheels . | . . . . . . . . . . . . . . Hover . | . . . . . . . . . . . . . . Flight . | . . . . . . . . . . . . . . Fastest Speed 50 | 50 160 160 160 160 160 170 170 161 145 155 120 186 180 Average Speed 191 | 124 160 160 160 160 171 170 222 179 215 241 186 186 182 Slowest Speed 700 | 160 160 160 160 160 240 170 250 250 305 700 190 186 186 Overloaded Moves . | . . . . . . . . . . . . . . Propulsion Burnouts . | . . . . . . . . . . . . . . Robots Hopped . | . . . . . . . . . . . . . . Potential Cave-ins . | . . . . . . . . . . . . . . Cave-ins Triggered . | . . . . . . . . . . . . . . Exploration Rate (%) 31 | 4 88 49 61 25 22 10 37 14 55 23 27 2 24 Regions Visited 13 Branch Regions 3 Pre-discovered Areas . | . . . . . . . . . . . . . . Known Exits Taken 4 | . . . . . . 1 . 1 . 1 . 1 . Unknown Exits Taken 6 | 1 1 1 1 1 1 . . . . . . . . Scrap Searched . | . . . . . . . . . . . . . . Spaces Dug 19 | . . . . . . 8 . . . 11 . . . Terrain Destroyed 367 | . 87 14 . 12 108 13 60 15 1 41 5 . 11 Melee 11 | . . . . . . . . . . 11 . . . Projectile 64 | . . . . . 3 13 14 15 1 6 1 . 11 AOE 292 | . 87 14 . 12 105 . 46 . . 24 4 . . Terrain Rammed . | . . . . . . . . . . . . . . Walls Destroyed . | . . . . . . . . . . . . . . Machines Disabled . | . . . . . . . . . . . . . . Actions | -11 -10 -10 -10 -9 -8 -7 -7 -7 -7 -6 -6 -6 -6 --------- Run | Yrd Mat Min Exi Min Mat Fac Gar Fac Gar Fac Gar Fac Gar Total 5495 | 66 664 175 234 126 267 416 370 905 618 1080 204 53 317 Wait 382 | . . 9 . 57 2 49 8 11 12 217 7 . 10 Move 4374 | 48 593 162 225 67 198 322 319 812 496 717 172 45 198 Hop . | . . . . . . . . . . . . . . Pick Up 118 | 9 25 . 2 . 13 10 4 8 16 17 3 3 8 Fast Attach 15 | . 1 . 2 . 1 1 . 2 1 2 . 1 4 Attach 65 | 7 . . 1 . 8 2 4 3 12 17 3 . 8 Detach 6 | . . . . . 1 . . 1 . 3 . . 1 Swap 52 | . 6 1 . . 7 2 4 6 10 6 3 1 6 Drop 83 | . 15 1 4 . 12 9 1 9 8 10 . 3 11 Fire 309 | 2 22 1 . 2 24 20 26 41 52 48 14 . 57 Melee 65 | . . . . . . . . 11 5 43 2 . 4 Ram . | . . . . . . . . . . . . . . Kick . | . . . . . . . . . . . . . . Crush 6 | . 2 1 . . 1 1 . 1 . . . . . Escape Stasis 18 | . . . . . . . 4 . 4 . . . 10 Rewire 2 | . . . . . . . . . 2 . . . . Trap . | . . . . . . . . . . . . . . Miscellaneous . | . . . . . . . . . . . . . . Route ------- -11/Scrapyard -10/Materials (discovered 5 exits: [*Mat x3] / [*Min x2]) -10/Mines (discovered 3 exits: [*Mat] / *Exi / [*Sub]) -10/Exiles -9/Mines -8/Materials -7/Factory -7/Garrison -7/Factory -7/Garrison (discovered 2 exits: *Fac x2) -6/Factory (discovered 2 exits: [*Low] / Gar) -6/Garrison -6/Factory -6/Garrison History --------- Turn | Location | Event 3 | -11/Scrapyard | Discovered new exit (range 16) 82 | -11/Scrapyard | Entered Materials 138 | -10/Materials | Discovered new exit (range 12) 313 | -10/Materials | Build established: Mutant 424 | -10/Materials | Discovered new exit (range 13) 819 | -10/Materials | Discovered new exit (range 13) 969 | -10/Materials | Discovered new exit (range 10) 1097 | -10/Materials | Discovered new exit (range 7) 1130 | -10/Materials | Entered Mines 1156 | -10/Mines | Met a Derelict bent on vengeance 1241 | -10/Mines | Received a Rocket Launcher from a helpful Derelict 1319 | -10/Mines | Discovered new exit (range 11) 1377 | -10/Mines | Discovered new exit (range 15) 1398 | -10/Mines | Deemed a non-threat by the Exiles lab entrance 1398 | -10/Mines | Discovered new exit (range 5) 1405 | -10/Mines | Entered Exiles 1447 | -10/Exiles | Met 8R-AWN 1473 | -10/Exiles | Met EX-HEX 1516 | -10/Exiles | Met EX-BIN 1535 | -10/Exiles | Aligned with FarCom system 1537 | -10/Exiles | Given EX-Vault access code 1575 | -10/Exiles | Opened EX-Vault 1584 | -10/Exiles | Found Prototype Device 1584 | -10/Exiles | Identified Chronowheel 1584 | -10/Exiles | Activated Chronowheel 1587 | -10/Exiles | Found Prototype Device 1587 | -10/Exiles | Identified Cloak of Protection 1630 | -10/Exiles | Warned to stay clear of 0b10 Research branches 1674 | -10/Exiles | Met EX-DEC 1756 | -10/Exiles | Discovered new exit (range 14) 1773 | -10/Exiles | Left Exiles lab with Cloak of Protection 1773 | -10/Exiles | Entered Mines 1802 | -9/Mines | Assembled infested the area 1918 | -9/Mines | Discovered new exit (range 16) 1933 | -9/Mines | Received a Mining Laser from a helpful Derelict 1943 | -9/Mines | Entered Materials 1943 | -8/Materials | Accompanied by 1 ally 1943 | -8/Materials | Evolved 4 slots: Propulsion x1, Utility x3 2120 | -8/Materials | Discovered new exit (range 16) 2358 | -8/Materials | Build established: Scavenger-Mutant 2382 | -8/Materials | Entered Factory 2382 | -7/Factory | Evolved 2 slots: Utility x1, Weapon x1 2680 | -7/Factory | Build established: Scavenger-Bomber 3043 | -7/Factory | Identified exit to Garrison 3062 | -7/Factory | Entered Garrison 3158 | -7/Garrison | Triggered checkpoint 3332 | -7/Garrison | Triggered checkpoint 3340 | -7/Garrison | Triggered checkpoint 3454 | -7/Garrison | Discovered new exit (range 10) 3506 | -7/Garrison | Triggered checkpoint 3573 | -7/Garrison | Garrison Relay disabled 3811 | -7/Garrison | Installed Relay Interface Framework 3884 | -7/Garrison | Entered Factory 5521 | -7/Factory | Identified exit to Garrison 5521 | -7/Factory | Entered Garrison 5521 | -7/Garrison | Accompanied by 2 allies 5542 | -7/Garrison | Build established: Tank 5554 | -7/Garrison | P-60 Hacker assimilated allied Soldier 4a 5696 | -7/Garrison | Triggered checkpoint 5779 | -7/Garrison | Destroyed 8 combat bots 5780 | -7/Garrison | Lost 7 parts (2n1u4w) 6031 | -7/Garrison | Triggered checkpoint 6031 | -7/Garrison | Build established: Mutant 6083 | -7/Garrison | Garrison Relay disabled 6161 | -7/Garrison | Triggered checkpoint 6186 | -7/Garrison | Discovered new exit (range 14) 6301 | -7/Garrison | Triggered checkpoint 6384 | -7/Garrison | Core integrity fell below 50% 6441 | -7/Garrison | Triggered checkpoint 6524 | -7/Garrison | Phase Generator disabled 6644 | -7/Garrison | Expanded RIF knowledge: Alert ID Control 6794 | -7/Garrison | Discovered new exit (range 11) 6820 | -7/Garrison | Entered Factory 6820 | -6/Factory | Accompanied by 1 ally 6820 | -6/Factory | Evolved 2 slots: Utility x1, Weapon x1 6846 | -6/Factory | Build established: Scavenger-Gunner 8231 | -6/Factory | Discovered new exit (range 13) 8685 | -6/Factory | Lost 9 parts (1p3n2u3w) 8805 | -6/Factory | Garrison activated, responded to threat 8822 | -6/Factory | Core integrity fell below 50% 9071 | -6/Factory | Identified exit to Garrison 9071 | -6/Factory | Entered Garrison 9161 | -6/Garrison | Found embedded Infiltrators 9208 | -6/Garrison | Triggered checkpoint 9209 | -6/Garrison | Triggered checkpoint 9441 | -6/Garrison | Discovered new exit (range 10) 9460 | -6/Garrison | Entered Factory 9460 | -6/Factory | Accompanied by 1 ally 9551 | -6/Factory | Identified exit to Garrison 9551 | -6/Factory | Entered Garrison 9551 | -6/Garrison | Accompanied by 1 ally 9684 | -6/Garrison | Expanded RIF knowledge: Hotswap 9804 | -6/Garrison | Found embedded Infiltrators 9815 | -6/Garrison | Triggered checkpoint 9844 | -6/Garrison | Garrison Relay disabled 9939 | -6/Garrison | Triggered checkpoint 9944 | -6/Garrison | Core integrity fell below 20% 10004 | -6/Garrison | Lost 3 parts (1u2w) 10097 | -6/Garrison | Triggered checkpoint 10151 | -6/Garrison | Destroyed by G-50 Soldier with Heavy Laser Last Messages --------------- 10110_ Destroyed Imp. Heat Sink. 10114_ Angular Momentum Engine destroyed. 10115_ Slug penetrates Y-54 Guardian. 10115_ Y-54 Guardian Imp. Light Armor Plating blasted off. 10118_ Slug penetrates Y-54 Guardian. 10118_ Y-54 Guardian destroyed. 10122_ Slug penetrates G-50 Soldier. 10122_ G-50 Soldier knocked back. 10128_ Slug penetrates G-50 Soldier. 10128_ G-50 Soldier knocked back. 10130_ Gauss Rifle destroyed. 10131_ G-50 Soldier knocked back. 10134_ Slug penetrates G-50 Soldier. 10134_ G-50 Soldier knocked back. 10140_ Slug penetrates G-50 Soldier. 10140_ G-50 Soldier destroyed. 10143_ System corrupted: Mni. Assault Cannon jammed. 10149_ Slug penetrates Wall. Map ----- +----------------------------------------------------+ | ?????????????????????????????????????????????????? | | ?????????????????????????????????????????????????? | | ?????????????????????????????????????????????????? | | ?????????????????????????????????????????????????? | | ?????????????????????????????????????????????????? | | ?????????????????????????????????????????????????? | | ?????????????????????????????????????????????????? | | ?????????????????????????????????????????????????? | | ?????????????????????????????????????????????????? | | ??????????????????????? ????????????????????????? | | ??????????????????????? #???????????????????????? | | ?????????????????????## #???"???????????????????? | | ?????????????????????# ?? ????????????????? | | ????????????????????? ?? ? ??????????????? | | ????????????????????? ? ? ????????????? | | ?????????????????????# #? ## #????????????? | | ???????????????????### ## %#; ##???????????? | | ???????????????????# %% ????????????? | | ???????????????????#% %!% "????????????? | | ???????????????????? % %=% ?????????????? | | ?????????????????????% = % = ???????????????? | | ?????????###??????##?#%%=## #????#????????????? | | ?????????# ##???###!##=g%;; /##^^^## #?????????? | | #????????# #???#;##[;[!!* % =%!%[ ;;#??????????? | | #????????## #???#!%% ;=!% % =*!%% ; #????????? | | ###########+#???#=#### * @ *%!% ;;#??????????? | | !#???#!*!###= ## ##% #????????????? | | ##### ### #???# =##?# #??? #?????????????????? | | ????# #?#%##### ##### #?????#?????????????????? | | ????#####?#*+/= % # #???????????????????????? | | ??????????#%##### ##### #???????????????????????? | | ??????????#=#####%#???# #???????????????????????? | | ?????#????# # # # #???# #???????????????????????? | | ###### ####="""##%##### #???????????????????????? | | #" %" !==] *%!% #???????????????????????? | | ????#### ==!! =% % % #???????????????????????? | | ???????# =#"""""#"########???????????????????????? | | ???????#% #####%# #??????????????????????????????? | | ???????# #???### #??????????????????????????????? | | ???????# #?????# #??????????????????????????????? | | ???????# ####### #??????????????????????????????? | | ???????# # #??????????????????????????????? | | ???????# ####### #??????????????????????????????? | | ?????### #????## ##?????????????????????????????? | | ?????# #????# ^#?????????????????????????????? | | ?????# #????#" "#?????????????????????????????? | | ?????# #????#" "#?????????????????????????????? | | ?????######????#" "#?????????????????????????????? | | ???????????????#"""#?????????????????????????????? | | ???????????????#####?????????????????????????????? | +----------------------------------------------------+ Best States ------------- Heat Dissipation 56 Energy Generation 18 Energy Capacity 300 Matter Stores 550 Matter Capacity 550 Sight Range 16 Terrain Scan Density 10 Armor Coverage 600 Evasion (%) 50 Targeting Accuracy 16 Recoil Reduction 3 Kinecelleration 30 Offensive Hacking 10 Relay Coupler Types 1 Relay Coupler Value 27 Item Schematics ----------------- None Robot Schematics ------------------ None Fabricated ------------ Nothing Repaired ---------- Nothing Studied --------- None Alien Tech Used ----------------- None Achievements -------------- Assimilation Complete I Laugh At Your Crits Infiltrator Join The Dark Side Mindtrick You Will Be Upgraded Challenges ------------ None Game ------ Seed ThiefSupersonicTurretformer Manual? 0 Play Time 01:30:12 Cumulative 41.9 hours Start 2026.07.11 @ 10:56:30 End 2026.07.11 @ 12:53:45 Sessions 1 Manual Loads 0 Difficulty Rogue Special Mode None Game No. 90 Rogue 90 Adventurer 0 Explorer 0 Win Type - Total 0 Types 0/0/0/0/0/0/0/0/0/0 Lore% 28 Gallery% 32 Achievement% 24 Wizard Run 0 Options --------- Layout 2 ASCII 0 Keyboard 0 Movement Mouse Keybinds 0 Fullscreen 1 Font 48/Smallcaps Map View 50x44 Zoom Use 0% Tactical HUD 1 Map Filters NONE Filters NONE Steam 1 RUN: 8ddceae7-3e6f-417d-90ac-6817668e77ac